{"text_format":"1","workbook":"xlsx","n_sheets":5,"sheets":["JPK-Nagłówek","JPK-Sprzedaż","JPK-Zakup","JPK - uzgodnienie z VAT-7","techniczne"],"not_rendered":{"charts":0,"images":0,"macros":1,"external_links":1,"defined_names":99,"comments":5,"pivot_tables":0},"unopened":[],"bounds":{"document_bytes":16777216,"sheet_cells":100000,"rows_first":2000,"rows_last":500,"rows_between":2000,"halvings":0,"cell_chars":16384,"cell_head_chars":4096},"cells_cut":0,"cells_raw":0,"read":"whole","date_system":"1900"}

{"sheet":"JPK-Nagłówek","index":0,"n_rows":19,"n_cols":11,"rows_kept":19,"cut":false,"hidden":false,"merged":[[3,8,3,15],[10,8,10,11],[13,8,13,9],[14,8,14,9],[7,8,7,11],[11,8,11,11],[12,8,12,11]]}
[null,null,null,null,null,"JPK_VAT"]
[null,null,null,{"$f":"DataWytworzenia()","v":"2017-03-14T11:19:49"}]
[]
[null,null,"Cel złożenia:",1,null,null,null,"Pełna nazwa podmiotu:","Pełna nazwa przedsiębiorstwa"]
[null,null,null,null,null,null,null,"NIP:","1234567890"]
[null,null,"Data od:","2015-08-01",null,null,null,"REGON:","012345678"]
[null,null,"Data do:","2015-08-31"]
[null,null,null,null,null,null,null,"Ulica:","Specjalna"]
[null,null,"Domyślny kod waluty:","PLN",null,null,null,"Nr domu:","1","Nr lokalu:",""]
[null,null,null,null,null,null,null,"Kod pocztowy:","00-201"]
[null,null,"Kod urzędu skarbowego:","2411",null,null,null,"Miejscowość:","Warszawa"]
[null,null,null,null,null,null,null,"Poczta:","Warszawa"]
[null,null,null,null,null,null,null,"Gmina:","Warszawa"]
[null,null,null,null,null,null,null,"Powiat:","Warszawa"]
[null,null,null,null,null,null,null,"Województwo:","Mazowieckie"]
[]
[]
[null,"Pola obowiązkowe:"]
[null,"Pola opcjonalne:"]

{"sheet":"JPK-Sprzedaż","index":1,"n_rows":16,"n_cols":38,"rows_kept":16,"cut":false,"hidden":false,"merged":[]}
[null,null,null,"Zestawienie dla danych od dnia:",{"$f":"IF(DataOd = \"\",\"\",DataOd)","v":"2015-08-01"},{"$f":"SUBTOTAL(5,F7:F1048576)","v":"2015-08-03"},null,"Liczba wierszy:",{"$f":"C4","v":10}]
[null,null,null,"do dnia:",{"$f":"IF(DataDo=\"\",\"\",DataDo)","v":"2015-08-31"},{"$f":"IF(F7=\"\",\"\",SUBTOTAL(4,F7:F1048576))","v":"2015-08-31"},null,"Podatek należny:",{"$f":"P4+R4+T4+X4+Z4+AB4+AD4+AG4+AI4+AJ4+AL4-AK4","v":4090.05}]
[]
[null,null,{"$f":"SUBTOTAL(3,C7:C1048576)","v":10},null,null,null,null,null,null,{"$f":"SUBTOTAL(9,J7:J1048576)","v":0},{"$f":"SUBTOTAL(9,K7:K1048576)","v":0},0,0,0,0,0,0,0,18367.400000000001,4090.05,0,0,0,0,0,0,0,0,0,0,0,0,0,0,0,0,0,0]
[]
[null,null,"Lp. ","Błąd","Data sprzedaży","Data wystawienia","Nr dokumentu","Nazwa nabywcy","Adres nabywcy","K 10","K 11","K 12","K 13","K 14","K 15","K 16","K 17","K 18","K 19","K 20","K 21","K 22","K 23","K 24","K 25","K 26","K 27","K 28","K 29","K 30","K 31","K 32","K 33","K 34","K 35","K 36","K 37","K 38"]
[null,null,1,null,null,"2015-08-21","150160390","\"MORA SERVIS\" TECHNIKA GRZEWCZA I SANITARNA MARIUSZ NOWICKI","09-402 PŁOCK, RÓŻANA 50",null,null,null,null,null,null,null,null,null,284.42,65.42]
[null,null,2,null,null,"2015-08-24","150161855","INSTALATORSTWO GAZOWE ROMAN STAWSKI","01-313 WARSZAWA, UL. KARABELI 3 M. 18",null,null,null,null,null,null,null,null,null,2020,464.6]
[null,null,3,null,null,"2015-08-21","150161128","ZAKŁAD INSTALACJI WOD.KAN.,GAZU I C.O. SŁAWOMIR FILOCHA","41-103 SIEMIANOWICE ŚL., MACIEJKOWICKA 1",null,null,null,null,null,null,null,null,null,10901.41,2507.3200000000002]
[null,null,4,null,null,"2015-08-14","150156171","ZAKŁAD  OGÓLNOBUD. I INSTALACJI SANITARNYCH  ROMAN SIKORSKI","11-001 DYWITY, OLSZTYŃSKA 24  A",null,null,null,null,null,null,null,null,null,2081.75,478.8]
[null,null,5,null,null,"2015-08-27","150164731","CENTURION OPAKOWANIA MARZENA KABZIŃSKA","85-426 BYDGOSZCZ, UL.BRONIKOWSKIEGO 23",null,null,null,null,null,null,null,null,null,109.85,25.27]
[null,null,6,null,null,"2015-08-31","150167259","ZAKŁAD USŁUGOWO HANDLOWY HYDRAULIK BOGDAN MIKOŁAJCZAK","64-920 PIŁA, UL. KOŁOBRZESKA 18",null,null,null,null,null,null,null,null,null,1275,293.25]
[null,null,7,null,null,"2015-08-20","157016834","PRZEDSIĘBIORSTWO HANDLOWO-USŁUGOWE ROMAN WOŹNIAKOWSKI","54-434 WROCŁAW, UL.BUDZISZYŃSKA 33/4",null,null,null,null,null,null,null,null,null,-253.5,-58.31]
[null,null,8,null,null,"2015-08-03","150148438","HYDRONICS S.C. WŁODZIMIERZ BRZEZIŃSKI, JAROSŁAW WIELAND","72-006  SZCZECIN, UL. WELECKA 50A MIERZYN",null,null,null,null,null,null,null,null,null,584.57000000000005,0]
[null,null,9,null,null,"2015-08-05","150150099","PPH \"TARANKO\"","80-557 GDAŃSK, UL.MARYNARKI POLSKIEJ 73 B",null,null,null,null,null,null,null,null,null,546,125.58]
[null,null,10,null,null,"2015-08-14","150155828","NOWOCZESNE SYSTEMY GRZEWCZE I SANITARNE MARIUSZ KOWALCZYK","97-330 SULEJÓW, PRZYGŁÓW UL. PRZYGŁÓW LAS 120",null,null,null,null,null,null,null,null,null,817.9,188.12]

{"sheet":"JPK-Zakup","index":2,"n_rows":16,"n_cols":16,"rows_kept":16,"cut":false,"hidden":false,"merged":[]}
[null,null,null,"Zestawienie dla danych od dnia:",{"$f":"IF(DataOd = \"\",\"\",DataOd)","v":"2015-08-01"},null,"Liczba wierszy:",{"$f":"C4","v":10},{"$f":"SUBTOTAL(5,I7:I1048576)","v":"2015-07-07"}]
[null,null,null,"do dnia:",{"$f":"IF(DataDo=\"\",\"\",DataDo)","v":"2015-08-31"},null,"Podatek naliczony:",{"$f":"K4+M4+N4+O4+P4","v":5877},{"$f":"IF(I7=\"\",\"\",SUBTOTAL(4,I7:I1048576))","v":"2015-08-11"}]
[]
[null,null,{"$f":"SUBTOTAL(3,C7:C1048576)","v":10},null,null,null,null,null,null,{"$f":"SUBTOTAL(9,J7:J1048576)","v":0},{"$f":"SUBTOTAL(9,K7:K1048576)","v":0},25551.47,5877,0,0,0]
[]
[null,null,"Lp. ","Błąd","Nazwa wystawcy","Adres wystawcy","NIP wystawcy","Nr faktury","Data wpływu","K 42","K 43","K 44","K 45","K 46","K 47","K 48"]
[null,null,1,null,"FABRYKA ARMATURY HAWLE SPÓŁKA Z O.O","62-028 KOZIEGŁOWY, UL. PIASKOWA 9","7811001712","F115/07/474","2015-07-31",null,null,3272.1,752.58]
[null,null,2,null,"WAVIN POLSKA S.A.","64-320 BUK, UL. DOBIEŻYŃSKA 43","7880008752","7130123566","2015-08-11",null,null,288.95999999999998,66.459999999999994]
[null,null,3,null,"DANFOSS POLAND SP. Z O.O.","05-825 GRODZISK MAZOWIECKI, UL. CHRZANOWSKA 5","5860005844","2380481380","2015-07-31",null,null,1739.11,400]
[null,null,4,null,"BANK SPÓŁDZIELCZY W GLIWICACH","44-100 GLIWICE, UL.DWORCOWA 41","6310101649","46/08/15/GL/FSL","2015-08-03",null,null,288.91000000000003,66.45]
[null,null,5,null,"SANITEC KOŁO SP. Z O.O.","62-600 KOŁO, UL. TORUŃSKA 154","7772751164","9100543736","2015-08-07",null,null,19,4.37]
[null,null,6,null,"FOX FITTINGS SP. Z O.O. SP.K.","43-330 Wilamowice, ul. Więźniów Oświęcimia 21b","9372473656","405/F00/07/2015","2015-07-24",null,null,888.92,204.45]
[null,null,7,null,"ATLANTIC POLSKA SP. Z O.O.","03-044 WARSZAWA, UL.PŁOCHOCIŃSKA 115","5242106779","ARIN152040","2015-07-07",null,null,1080,248.4]
[null,null,8,null,"FERRO S.A.","32-050 SKAWINA, UL. PRZEMYSŁOWA 7","9442051648","914/03/2015/BON","2015-07-31",null,null,-13377.55,-3076.67]
[null,null,9,null,"3W SERWIS SP.Z O.O. NIERUCHOMOŚCI SP.KOMAND-AKCYJNA","80-310 GDAŃSK, UL.J.H.DĄBROWSKIEGO 26/3","5842733869","3/8/2015","2015-08-04",null,null,8449,1943.27]
[null,null,10,null,"ZWS \"SILESIA\" SP. Z O.O.","44-109 GLIWICE, UL.WYCZÓŁKOWSKIEGO 20","9691111800","1731034421","2015-07-20",null,null,22903.02,5267.69]

{"sheet":"JPK - uzgodnienie z VAT-7","index":3,"n_rows":53,"n_cols":3,"rows_kept":53,"cut":false,"hidden":true,"merged":[]}
["ROZLICZENIE PODATKU NALEŻNEGO"]
[null,"Podstawa opodatkowania w zł","Podatek należny w zł"]
["1. Dostawa towarów oraz świadczenie usług, na terotyrium kraju, zwolnione od podatku",{"$f":"+ROUND('JPK-Sprzedaż'!J4,)","v":0}]
["2. Dostawa towarów oraz świadczenie usług poza terytorium kraju",{"$f":"+ROUND('JPK-Sprzedaż'!K4,)","v":0}]
["    2a. w tym świadczenie usług, o których mowa w art. 100 ust. 1 pkt. 4",{"$f":"+ROUND('JPK-Sprzedaż'!L4,)","v":0}]
["3. Dostawa towarów oraz świadczenie usług, na terytorium kraju, opodatkowane stawką 0%",{"$f":"+ROUND('JPK-Sprzedaż'!M4,)","v":0}]
["    3a. w tym dostawa towarów, o której mowa w art. 129 ustawy",{"$f":"+ROUND('JPK-Sprzedaż'!N4,)","v":0}]
["4. Dostawa towarów oraz świadczenie usług, na terytorium kraju, opodatkowane stawką 5%",{"$f":"+ROUND('JPK-Sprzedaż'!O4,)","v":0},{"$f":"+ROUND('JPK-Sprzedaż'!P4,)","v":0}]
["5. Dostawa towarów oraz świadczenie usług, na terytorium kraju, opodatkowane stawką 7% albo 8%",{"$f":"+ROUND('JPK-Sprzedaż'!Q4,)","v":0},{"$f":"+ROUND('JPK-Sprzedaż'!R4,)","v":0}]
["6. Dostawa towarów oraz świadczenie usług, na terytorium kraju, opodatkowane stawką 22% albo 23%",{"$f":"+ROUND('JPK-Sprzedaż'!S4,)","v":18367},{"$f":"+ROUND('JPK-Sprzedaż'!T4,0)","v":4090}]
["7. Wewnątrzwspólnotowa dostawa towarów",{"$f":"+ROUND('JPK-Sprzedaż'!U4,)","v":0}]
["8. Eksport towarów",{"$f":"+ROUND('JPK-Sprzedaż'!V4,)","v":0}]
["9. Wewnątrzwspólnotowe nabycie towarów",{"$f":"+ROUND('JPK-Sprzedaż'!W4,)","v":0},{"$f":"+ROUND('JPK-Sprzedaż'!X4,)","v":0}]
["10. Import towarów podlegający rozliczeniu zgodnie z art. 33a ustawy",{"$f":"+ROUND('JPK-Sprzedaż'!Y4,)","v":0},{"$f":"+ROUND('JPK-Sprzedaż'!Z4,)","v":0}]
["11. Import usług z wyłączeniem usług nabywanych od podatników podatku od wartości dodanej, do których stosuje się art.. 28b",{"$f":"+ROUND('JPK-Sprzedaż'!AA4,)","v":0},{"$f":"+ROUND('JPK-Sprzedaż'!AB4,)","v":0}]
["12. Import usług nabywanych od podatników podatku od wartości dodanej, do których stosuje się art. 28b",{"$f":"+ROUND('JPK-Sprzedaż'!AC4,)","v":0},{"$f":"+ROUND('JPK-Sprzedaż'!AD4,)","v":0}]
["13. Dostawa towarów oraz świadczenie usług, dla których podatnkikiem jest nabywca zgodnie z art. 17 ust. 1 pkt 7 lub 8 (wypełnia dostawca)",{"$f":"+ROUND('JPK-Sprzedaż'!AE4,)","v":0}]
["14. Dostawa towarów, dla których podatnikiem jest nabywca zgodnie z art. 17 ust. 1 pkt 5 (wypełnia nabywca)",{"$f":"+ROUND('JPK-Sprzedaż'!AF4,)","v":0},{"$f":"+ROUND('JPK-Sprzedaż'!AG4,)","v":0}]
["15. Dostawa towarów oraz świadczenie usług, dla których podatnikiem jest nabywca zgodnie z art. 17 ust. 1 pkt 7 lub 8 (wypełnia nabywca)",{"$f":"+ROUND('JPK-Sprzedaż'!AH4,)","v":0},{"$f":"+ROUND('JPK-Sprzedaż'!AI4,)","v":0}]
["16. Kwota podatku należnego od towarów i usług objętych spisem z natury, o których mowa w art. 14 ust. 5",null,{"$f":"+ROUND('JPK-Sprzedaż'!AJ4,)","v":0}]
["17. Zwrot odliczonej lub zwróconej kwoty wydatkowanej na zakup kas rejestrujących, o których mowa w art.. 111 ust. 6",null,{"$f":"+ROUND('JPK-Sprzedaż'!AK4,)","v":0}]
["18. Kwota podatku należnego od wewnątrzwspólnotowego nabycia środków transportu, wykazanego w poz. 24, podlegająca wpłacie w terminie, o którym mowa w art. 103 ust. 3, w związku z ust. 4",null,{"$f":"+ROUND('JPK-Sprzedaż'!AL4,)","v":0}]
["19. Kwota podatku od wewnątrzwspólnotowego nabycia paliw silnikowych, podlegająca wpłacie w terminach, o których mowa w art. 103 ust. 5a i 5b",null,{"$f":"+ROUND('JPK-Sprzedaż'!AM4,)","v":0}]
[]
[]
[null,{"$f":"+B3+B4+B6+B8+B9+B10+B11+B12+B13+B14+B15+B16+B17+B18+B19","v":18367},{"$f":"+C8+C9+C10+C13+C14+C15+C16+C18+C19+C20-C21-C22-C23","v":4090}]
[]
[]
["ROZLICZENIE PODATKU NALICZONEGO"]
[]
["1. PRZENIESIENIA",null,"Podatek do odliczenia w zł"]
["Kwota nadwyżki z poprzedniej deklaracji"]
[]
[]
["2. NABYCIE TOWARÓW I USŁUG ORAZ PODATEK NALICZONY Z UWZGLĘDNIENIEM KOREKT"]
[]
[null,"Wartość netto w zł","Podatek naliczony w zł"]
["Nabycie towarów i usług zaliczanych u podatnika do środków trwałych",{"$f":"+ROUND('JPK-Zakup'!J4,)","v":0},{"$f":"+ROUND('JPK-Zakup'!K4,)","v":0}]
["Nabycie towarów i usług pozostałych",{"$f":"+ROUND('JPK-Zakup'!L4,)","v":25551},{"$f":"+ROUND('JPK-Zakup'!M4,)","v":5877}]
[]
["3. PODATEK NALICZONY - DO ODLICZENIA W ZŁ"]
["Korekta podatku naliczonego od nabycia środków trwałych",null,{"$f":"+ROUND('JPK-Zakup'!N4,)","v":0}]
["Korekta podatku naliczonego od pozostałych nabyć",null,{"$f":"+ROUND('JPK-Zakup'!O4,)","v":0}]
["Korekta podatku naliczonego, o której mowa w art. 89b ust. 1 ustawy",null,{"$f":"+ROUND('JPK-Zakup'!P4,)","v":0}]
["Razem kwota podatku naliczonego do odliczenia",null,{"$f":"+C32+C38+C39+C42+C43+C44","v":5877}]
[]
[]
["OBLICZENIE WYSOKOŚCI ZOBOWIĄZANIA PODATKOWEGO LUB KWOTY DO ZWROTU (w zł)"]
["Kwota wydatkowana na zakup kas rejestrujących"]
["Kwota podatku objęta zaniechaniem poboru"]
["Kwota podatku podlegającego wpłacie do Urzędu Skarbowego",null,{"$f":"IF(C26>C45,C26-C45-C49-C50,0)","v":0}]
["Kwota wydatkowana na zakup kas rejestrujących, przysługująca do zwrotu w danym okresie rozliczeniowym"]
["Nadwyżka podatku naliczonego nad należnym",null,{"$f":"IF(C45-C26>=0,C45-C26+C52,0)","v":1787}]

{"sheet":"techniczne","index":4,"n_rows":93,"n_cols":20,"rows_kept":93,"cut":false,"hidden":true,"merged":[[92,14,92,15],[92,16,92,17],[90,14,90,15],[90,16,90,17],[89,14,89,15],[89,16,89,17],[91,14,91,15],[91,16,91,17],[86,14,86,15],[86,16,86,17],[88,14,88,15],[88,16,88,17],[87,14,87,15],[87,16,87,17]]}
[]
[null,null,null,null,null,null,null,null,null,null,null,null,null,null,"Elementy list","Numery automat:","Nr obowiązkowej kolumny"]
[null,null,null,null,null,null,null,null,null,null,null,null,null,null,"SprzedazWiersz","LpSprzedazy",4]
[null,null,null,null,null,null,null,null,null,null,null,null,null,null,"ZakupWiersz","LpZakupu",3]
[]
[null,null,null,null,null,null,null,null,null,null,null,null,null,null,"XED","#4280"]
[null,null,null,null,null,null,null,null,null,null,null,null,null,null,"XSD:","http://www.mf.gov.pl/documents/764034/5134536/Schemat_JPK_VAT%281%29_v1-0.xsd"]
[null,null,null,null,null,null,null,null,null,null,null,null,null,null,"Namespace:","http://jpk.mf.gov.pl/wzor/2016/03/09/03094/"]
[]
[null,null,null,null,null,null,null,null,null,null,null,null,null,null,"ZeroToEmpty",true]
[null,null,null,null,null,null,null,null,null,null,null,null,null,null,"ZeroFollowsFields:","K_16,K_18,K_20,K_24,K_26,K_28,K_30,K_33,K_35,K_43,K_45,PodatekNalezny,PodatekNaliczony"]
[]
[null,null,null,null,null,null,null,null,null,null,null,null,null,null,"Dodatkowe testy merytoryczne podczas Importu i dopisywania (Append):"]
[]
[null,null,null,null,null,null,null,null,null,null,null,null,null,null,"Sprawdź podczas importu","Sprawdź podczas dołączania","Wykonać przed walidacją XSD?","Węzeł z porównywaną wartością (wyrażenie Xpath) (uruchamiane dla DocumentNode)","Oczekiwana wartość","Komunikat o ewentualnym błędzie (Wpisz {Val} tam, gdzie ma być podstawiona wartość z importowanego dokumentu)"]
[null,null,null,null,null,null,null,null,null,null,null,null,null,null,{"$f":"TRUE","v":true},{"$f":"TRUE","v":true},{"$f":"TRUE","v":true},"jpk:Naglowek/jpk:KodFormularza","JPK_VAT",{"$f":"\"Niewłaściwy typ pliku JPK ({Val}), podczas gdy powinien to być '\" & S16 & \"'\"","v":"Niewłaściwy typ pliku JPK ({Val}), podczas gdy powinien to być 'JPK_VAT'"}]
[null,null,null,null,null,null,null,null,null,null,null,null,null,null,{"$f":"FALSE","v":false},{"$f":"TRUE","v":true},{"$f":"FALSE","v":false},"jpk:Podmiot1/jpk:IdentyfikatorPodmiotu/etd:NIP",{"$f":"NIP","v":"1234567890"},{"$f":"\"Plik dotyczy przedsiębiorstwa o innym NIP ({Val}) niż dotychczas wczytane dane (dla przedsiębiorstwa o NIP: \" &S17 & \")\"","v":"Plik dotyczy przedsiębiorstwa o innym NIP ({Val}) niż dotychczas wczytane dane (dla przedsiębiorstwa o NIP: 1234567890)"}]
[null,null,null,null,null,null,null,null,null,null,null,null,null,null,{"$f":"FALSE","v":false},{"$f":"TRUE","v":true},{"$f":"FALSE","v":false},"jpk:Naglowek/jpk:DataOd",{"$f":"TEXT(DataOd,\"rrrr-MM-dd\")","v":"2015-08-01"},{"$f":"\"Plik dotyczy okresu o innej dacie początkowej ({Val}) niż dotychczas wczytane dane (\" & S18 & \")\"","v":"Plik dotyczy okresu o innej dacie początkowej ({Val}) niż dotychczas wczytane dane (2015-08-01)"}]
[null,null,null,null,null,null,null,null,null,null,null,null,null,null,{"$f":"FALSE","v":false},{"$f":"TRUE","v":true},{"$f":"FALSE","v":false},"jpk:Naglowek/jpk:DataDo",{"$f":"TEXT(DataDo,\"rrrr-MM-dd\")","v":"2015-08-31"},{"$f":"\"Plik dotyczy okresu o innej dacie końcowej ({Val}) niż dotychczas wczytane dane (\" & S19 & \")\"","v":"Plik dotyczy okresu o innej dacie końcowej ({Val}) niż dotychczas wczytane dane (2015-08-31)"}]
[]
[null,null,null,null,null,null,null,null,null,null,null,null,null,null,"Nazwa skoroszytu:",null,"JPK_VAT"]
[null,null,null,null,null,null,null,null,null,null,null,null,null,null,"Numer seryjny:",null,"EVAL"]
[null,null,null,null,null,null,null,null,null,null,null,null,null,null,"Numer edycji:",null,"1.29b"]
[null,null,null,null,null,null,null,null,null,null,null,null,null,null,"Wygenerowano:",null,"2017-03-14T11:19:22"]
[]
[null,null,null,null,null,null,null,null,null,null,null,null,null,null,"Komunikaty w oknach dialogowych",null,"00"]
[]
[]
[]
[]
[]
[]
[]
[]
[]
[]
[]
[]
[]
[]
[]
[]
[]
[]
[]
[]
[]
[]
[]
[]
[]
[]
[]
[]
[]
[]
[]
[]
[]
[]
[]
[]
[]
[]
[]
[]
[]
[]
[]
[]
[]
[]
[]
[]
[]
[]
[]
[]
[]
[]
[]
[]
[]
[]
[]
[null,null,null,null,null,null,null,null,null,null,null,null,null,null,"Schematy, używane gdy nie można użyć wersji online z Ministerstwa Finansów:"]
[null,null,null,null,null,null,null,null,null,null,null,null,null,null,"Nazwa ramki",null,"Przestrzeń nazw"]
[null,null,null,null,null,null,null,null,null,null,null,null,null,null,"KodyCechyKrajow",null,"http://crd.gov.pl/xml/schematy/dziedzinowe/mf/2013/05/23/eD/KodyCECHKRAJOW/"]
[null,null,null,null,null,null,null,null,null,null,null,null,null,null,"UrzedySkarbowe",null,"http://crd.gov.pl/xml/schematy/dziedzinowe/mf/2016/01/25/eD/DefinicjeTypy/"]
[null,null,null,null,null,null,null,null,null,null,null,null,null,null,"KodyKrajow",null,"http://crd.gov.pl/xml/schematy/dziedzinowe/mf/2016/01/25/eD/DefinicjeTypy/"]
[null,null,null,null,null,null,null,null,null,null,null,null,null,null,"ElementarneTypyDanych",null,"http://crd.gov.pl/xml/schematy/dziedzinowe/mf/2016/01/25/eD/DefinicjeTypy/"]
[null,null,null,null,null,null,null,null,null,null,null,null,null,null,"StrukturyDanych",null,"http://crd.gov.pl/xml/schematy/dziedzinowe/mf/2016/01/25/eD/DefinicjeTypy/"]
[null,null,null,null,null,null,null,null,null,null,null,null,null,null,"JPK",null,{"$f":"JPK_Namespace","v":"http://jpk.mf.gov.pl/wzor/2016/03/09/03094/"}]